fUSD/lending_fUSD_20240105
["ID","MTS","AMOUNT","RATE_DAILY","PERIOD"]
[310319625,1704471195224,-1104.35,0.00034246,3]
[310319626,1704471195234,-500.0,0.00034246,3]
[310319627,1704471195244,-506.93,0.00034246,3]
[310319628,1704471195254,-994.79,0.00034246,3]
[310319629,1704471195264,-500.0,0.00034246,3]
[310319630,1704471195273,-976.12,0.00034246,3]
[310319631,1704471195283,-514.26,0.00034246,3]
[310319632,1704471195293,-572.06,0.00034246,3]
[310319633,1704471195302,-737.83,0.00034246,3]
[310319634,1704471195312,-1754.66,0.00034246,3]
[310319635,1704471195323,-647.46,0.00034246,3]
[310319636,1704471195332,-500.0,0.00034246,3]
[310319637,1704471195342,-614.06,0.00034246,3]
[310319638,1704471195352,-762.69,0.00034246,3]
[310319639,1704471195361,-672.73,0.00034246,3]
[310319640,1704471195371,-500.0,0.00034246,3]
[310319641,1704471195380,-553.22,0.00034246,3]
[310319642,1704471195390,-500.0,0.00034246,3]
[310319643,1704471195399,-1134.29,0.00034246,3]
[310319644,1704471195408,-539.04,0.00034246,3]
[310319645,1704471195417,-1649.86,0.00034246,3]
[310319646,1704471195427,-835.39,0.00034246,3]
[310319647,1704471195436,-1069.61,0.00034246,3]
[310319648,1704471195445,-536.06,0.00034246,3]
[310319649,1704471195455,-628.4,0.00034246,3]
[310319650,1704471195464,-555.52,0.00034246,3]
[310319651,1704471195474,-1238.6,0.00034246,3]
[310319652,1704471195483,-500.0,0.00034246,3]
[310319653,1704471195493,-1117.69,0.00034246,3]
[310319654,1704471195503,-1268.87,0.00034246,3]
[310319655,1704471195511,-193.50279234,0.00034246,3]
[310319656,1704471195520,-500.0,0.00034246,3]
[310319657,1704471195530,-778.95,0.00034246,3]
[310319658,1704471195540,-500.0,0.00034246,3]
[310319659,1704471195549,-500.0,0.00034246,3]
[310319660,1704471195559,-500.0,0.00034246,3]
[310319661,1704471195569,-500.0,0.00034246,3]
[310319662,1704471195578,-500.16,0.00034246,3]
[310319663,1704471195587,-500.0,0.00034246,3]
[310319664,1704471195596,-426.62,0.00034246,3]
[310319665,1704471195605,-576.0,0.00034246,3]
[310319666,1704471195615,-1162.79,0.00034246,3]
[310319667,1704471195624,-500.0,0.00034246,3]
[310319668,1704471195634,-500.0,0.00034246,3]
[310319669,1704471195643,-500.0,0.00034246,3]
[310319670,1704471195652,-774.96,0.00034246,3]
[310319671,1704471195662,-822.37,0.00034246,3]
[310319672,1704471195671,-221.86463788,0.00034246,3]
[310319673,1704471195681,-1372.88,0.00034246,3]
[310319674,1704471195691,-541.67,0.00034246,3]
[310319675,1704471195700,-753.94,0.00034246,3]
[310319676,1704471195709,-653.2,0.00034246,3]
[310319677,1704471195719,-515.93,0.00034246,3]
[310319678,1704471195728,-500.0,0.00034246,3]
[310319679,1704471195738,-1253.1,0.00034246,3]
[310319680,1704471195748,-500.0,0.00034246,3]
[310319681,1704471195757,-1238.19,0.00034246,3]
[310319682,1704471195766,-772.08,0.00034246,3]
[310319683,1704471195775,-500.0,0.00034246,3]
[310319684,1704471195785,-727.02,0.00034246,3]
[310319685,1704471195794,-947.64,0.00034246,3]
[310319686,1704471195804,-500.0,0.00034246,3]
[310319687,1704471195813,-644.36,0.00034246,3]
[310319688,1704471195823,-695.57,0.00034246,3]
[310319689,1704471195833,-662.68,0.00034246,3]
[310319690,1704471195843,-500.0,0.00034246,3]
[310319691,1704471195853,-500.0,0.00034246,3]
[310319692,1704471195861,-500.0,0.00034246,3]
[310319693,1704471195871,-606.21,0.00034246,3]
[310319694,1704471195882,-500.0,0.00034246,3]
[310319695,1704471195891,-1236.18,0.00034246,3]
[310319696,1704471195901,-947.15,0.00034246,3]
[310319697,1704471195910,-500.0,0.00034246,3]
[310319698,1704471195921,-625.62,0.00034246,3]
[310319699,1704471195930,-545.24,0.00034246,3]
[310319700,1704471195939,-500.59,0.00034246,3]
[310319701,1704471195948,-637.82,0.00034246,3]
[310319702,1704471195958,-530.66,0.00034246,3]
[310319703,1704471195967,-500.0,0.00034246,3]
[310319704,1704471195977,-500.0,0.00034246,3]
[310319705,1704471195986,-500.0,0.00034246,3]
[310319706,1704471195995,-800.13,0.00034246,3]
[310319707,1704471196005,-500.0,0.00034246,3]
[310319708,1704471196015,-1387.56,0.00034246,3]
[310319709,1704471196025,-500.0,0.00034246,3]
[310319710,1704471196035,-626.55,0.00034246,3]
[310319711,1704471196044,-1366.99,0.00034246,3]
[310319712,1704471196053,-797.63,0.00034246,3]
[310319713,1704471196063,-500.0,0.00034246,3]
[310319714,1704471196072,-500.0,0.00034246,3]
[310319715,1704471196082,-289.87985868,0.00034246,3]
[310319716,1704471196092,-703.77,0.00034246,3]
[310319717,1704471196103,-500.0,0.00034246,3]
[310319718,1704471196113,-581.02,0.00034246,3]
[310319719,1704471196124,-1360.29,0.00034246,3]
[310319720,1704471196134,-500.0,0.00034246,3]
[310319721,1704471196143,-531.42,0.00034246,3]
[310319722,1704471196153,-700.18,0.00034246,3]
[310319723,1704471196162,-500.0,0.00034246,3]
[310319724,1704471196171,-500.0,0.00034246,3]
[310319725,1704471196181,-1036.76,0.00034246,3]
[310319726,1704471196190,-962.57,0.00034246,3]
[310319727,1704471196199,-1289.38,0.00034246,3]
[310319728,1704471196208,-4950.03,0.00034246,3]
[310319729,1704471196509,-534.20822537,0.00034246,3]
[310319730,1704471196526,-813.88,0.00034246,3]
[310319731,1704471196536,-500.0,0.00034246,3]
[310319732,1704471196547,-734.2,0.00034246,3]
[310319733,1704471196557,-712.3,0.00034246,3]
[310319734,1704471196567,-573.47,0.00034246,3]
[310319735,1704471196577,-834.43,0.00034246,3]
[310319736,1704471196587,-1459.15,0.00034246,3]
[310319737,1704471196596,-753.46,0.00034246,3]
[310319738,1704471196606,-1169.4,0.00034246,3]
[310319739,1704471196618,-564.11,0.00034246,3]
[310319740,1704471196628,-598.84,0.00034246,3]
[310319741,1704471196638,-1096.24,0.00034246,3]
[310319742,1704471196648,-1425.41,0.00034246,3]
[310319743,1704471196659,-6105.28,0.00034246,3]
[310319744,1704471196668,-2530.93,0.00034246,3]
[310319745,1704471196678,-500.0,0.00034246,3]
[310319746,1704471196689,-820.35,0.00034246,3]
[310319747,1704471196698,-1820.15,0.00034246,3]
[310319748,1704471196708,-848.25,0.00034246,3]
[310319749,1704471196717,-1454.88,0.00034246,3]
[310319750,1704471196726,-374.9865099,0.00034246,3]
[310319751,1704471196735,-3529.52,0.00034246,3]
[310319752,1704471196745,-1261.77,0.00034246,3]
[310319753,1704471196756,-500.0,0.00034246,3]
[310319754,1704471196766,-522.36,0.00034246,3]
[310319755,1704471196781,-673.04,0.00034246,3]
[310319756,1704471196795,-500.0,0.00034246,3]
[310319757,1704471196805,-1294.63,0.00034246,3]
[310319758,1704471196814,-1207.05,0.00034246,3]
[310319759,1704471196824,-543.14,0.00034246,3]
[310319760,1704471196834,-806.5,0.00034246,3]
[310319761,1704471196843,-2710.43,0.00034246,3]
[310319762,1704471196853,-500.0,0.00034246,3]
[310319763,1704471196862,-731.44,0.00034246,3]
[310319764,1704471196871,-500.0,0.00034246,3]
[310319765,1704471196881,-519.5,0.00034246,3]
[310319766,1704471196890,-2046.64,0.00034246,3]
[310319767,1704471196899,-762.26,0.00034246,3]
[310319768,1704471196909,-620.31,0.00034246,3]
[310319769,1704471196920,-1317.65,0.00034246,3]
[310319770,1704471196930,-5333.49,0.00034246,3]
[310319771,1704471196940,-978.21,0.00034246,3]
[310319772,1704471196949,-1254.61,0.00034246,3]
[310319773,1704471196959,-802.02,0.00034246,3]
[310319774,1704471196969,-500.0,0.00034246,3]
[310319775,1704471196979,-1336.26,0.00034246,3]
[310319776,1704471196988,-537.87,0.00034246,3]
[310319777,1704471196998,-500.0,0.00034246,3]
[310319778,1704471197008,-3771.03,0.00034246,3]
[310319779,1704471197018,-525.81,0.00034246,3]
[310319780,1704471197027,-776.01,0.00034246,3]
[310319781,1704471197038,-3060.91,0.00034246,3]
[310319782,1704471197047,-13727.19,0.00034246,3]
[310319783,1704471197057,-1204.63,0.00034246,3]
[310319784,1704471197067,-769.65,0.00034246,3]
[310319785,1704471197078,-537.11,0.00034246,3]
[310319786,1704471197089,-4626.56,0.00034246,3]
[310319787,1704471197099,-1733.54,0.00034246,3]
[310319788,1704471197111,-3709.47,0.00034246,3]
[310319789,1704471197123,-3029.39,0.00034246,3]
[310319790,1704471197133,-9181.09,0.00034246,3]
[310319791,1704471197147,-5426.23,0.00034246,3]
[310319792,1704471197157,-740.27,0.00034246,3]
[310319793,1704471197170,-5834.39,0.00034246,3]
[310319794,1704471197180,-799.71,0.00034246,3]
[310319795,1704471197190,-500.0,0.00034246,3]
[310319796,1704471197201,-725.16,0.00034246,3]
[310319797,1704471197212,-4345.18,0.00034246,3]
[310319798,1704471197223,-30937.37,0.00034246,3]
[310319799,1704471197234,-821.62,0.00034246,3]
[310319800,1704471197245,-749.5,0.00034246,3]
[310319801,1704471197255,-675.77,0.00034246,3]
[310319802,1704471197265,-900.8,0.00034246,3]
[310319803,1704471197276,-699.84,0.00034246,3]
[310319804,1704471197288,-500.0,0.00034246,3]
[310319805,1704471197297,-1420.61,0.00034246,3]
[310319806,1704471197307,-605.12,0.00034246,3]
[310319807,1704471197317,-809.12,0.00034246,3]
[310319808,1704471197327,-1182.33,0.00034246,3]
[310319809,1704471197337,-500.0,0.00034246,3]
[310319810,1704471197347,-3777.28,0.00034246,3]
[310319811,1704471197359,-571.4,0.00034246,3]
[310319812,1704471197369,-1058.15,0.00034246,3]
[310319813,1704471197379,-830.16,0.00034246,3]
[310319814,1704471197390,-2249.97,0.00034246,3]
[310319815,1704471197400,-1921.66,0.00034246,3]
[310319816,1704471197410,-1277.02,0.00034246,3]
[310319817,1704471197421,-1078.96,0.00034246,3]
[310319818,1704471197430,-2596.11,0.00034246,3]
[310319819,1704471197440,-652.62,0.00034246,3]
[310319820,1704471197451,-915.92,0.00034246,3]
[310319821,1704471197460,-500.0,0.00034246,3]
[310319822,1704471197470,-582.86,0.00034246,3]
[310319823,1704471197480,-1916.84,0.00034246,3]
[310319824,1704471197491,-790.64,0.00034246,3]
[310319825,1704471197501,-500.0,0.00034246,3]
[310319826,1704471197511,-3952.46,0.00034246,3]
[310319827,1704471197522,-500.0,0.00034246,3]
[310319828,1704471197531,-4595.39,0.00034246,3]
[310319829,1704471197542,-756.94,0.00034246,3]
[310319830,1704471197552,-1252.88,0.00034246,3]
[310319831,1704471197563,-500.0,0.00034246,3]
[310319832,1704471197573,-717.12,0.00034246,3]
[310319833,1704471197583,-964.19,0.00034246,3]
[310319834,1704471197593,-1622.29,0.00034246,3]
[310319835,1704471197603,-6081.11,0.00034246,3]
[310319836,1704471197613,-1254.57,0.00034246,3]
[310319837,1704471197623,-1984.28,0.00034246,3]
[310319838,1704471197632,-2229.13,0.00034246,3]
[310319839,1704471197644,-500.0,0.00034246,3]
[310319840,1704471197653,-511.35,0.00034246,3]
[310319841,1704471197663,-629.9,0.00034246,3]
[310319842,1704471197673,-529.0,0.00034246,3]
[310319843,1704471197683,-839.46,0.00034246,3]
[310319844,1704471197694,-1375.91,0.00034246,3]
[310319845,1704471197703,-500.0,0.00034246,3]
[310319846,1704471197713,-730.24,0.00034246,3]
[310319847,1704471197723,-1622.69,0.00034246,3]
[310319848,1704471197733,-11940.29,0.00034246,3]
[310319849,1704471197742,-5893.72,0.00034246,3]
[310319850,1704471197751,-1045.96,0.00034246,3]
[310319851,1704471197762,-2605.01,0.00034246,3]
[310319852,1704471197771,-500.0,0.00034246,3]
[310319853,1704471197781,-608.68,0.00034246,3]
[310319854,1704471197791,-7863.2,0.00034246,3]
[310319855,1704471197801,-713.7,0.00034246,3]
[310319856,1704471197811,-381.78,0.00034246,3]
[310319857,1704471197821,-2294.09,0.00034246,3]
[310319858,1704471197833,-543.11,0.00034246,3]
[310319859,1704471197848,-3601.71,0.00034246,3]
[310319860,1704471197858,-647.48,0.00034246,3]
[310319861,1704471197869,-500.0,0.00034246,3]
[310319862,1704471197879,-1603.38,0.00034246,3]
[310319863,1704471197889,-500.0,0.00034246,3]
[310319864,1704471197898,-1192.53,0.00034246,3]
[310319865,1704471197908,-618.49,0.00034246,3]
[310319866,1704471197923,-2938.06,0.00034246,3]
[310319867,1704471197932,-1744.78,0.00034246,3]
[310319868,1704471197942,-666.36,0.00034246,3]
[310319869,1704471197952,-770.23,0.00034246,3]
[310319870,1704471197961,-2064.43,0.00034246,3]
[310319871,1704471197971,-5976.75,0.00034246,3]
[310319872,1704471197980,-526.45,0.00034246,3]
[310319873,1704471197990,-554.78,0.00034246,3]
[310319874,1704471197999,-770.2,0.00034246,3]
[310319875,1704471198010,-5218.54,0.00034246,3]
[310319876,1704471198020,-650.01,0.00034246,3]
[310319877,1704471198030,-500.0,0.00034246,3]
[310319878,1704471198041,-1624.24,0.00034246,3]
[310319879,1704471198050,-657.7,0.00034246,3]
[310319880,1704471198059,-500.0,0.00034246,3]
[310319881,1704471198070,-2564.8,0.00034246,3]
[310319882,1704471198082,-912.23,0.00034246,3]
[310319883,1704471198092,-733.59,0.00034246,3]
[310319884,1704471198102,-701.65,0.00034246,3]
[310319885,1704471198112,-1151.0,0.00034246,3]
[310319886,1704471198122,-788.16,0.00034246,3]
[310319887,1704471198132,-500.0,0.00034246,3]
[310319888,1704471198142,-1833.74,0.00034246,3]
[310319889,1704471198153,-1365.11,0.00034246,3]
[310319890,1704471198164,-1286.65,0.00034246,3]
[310319891,1704471198174,-1004.41,0.00034246,3]
[310319892,1704471198183,-1188.06,0.00034246,3]
[310319893,1704471198193,-500.0,0.00034246,3]
[310319894,1704471198202,-500.0,0.00034246,3]
[310319895,1704471198211,-500.0,0.00034246,3]
[310319896,1704471198221,-500.0,0.00034246,3]
[310319897,1704471198230,-889.44,0.00034246,3]
[310319898,1704471198239,-718.53,0.00034246,3]
[310319899,1704471198249,-799.46,0.00034246,3]
[310319900,1704471198259,-1229.01,0.00034246,3]
[310319901,1704471198268,-2168.33,0.00034246,3]
[310319902,1704471198278,-1440.65,0.00034246,3]
[310319903,1704471198287,-1007.17,0.00034246,3]
[310319904,1704471198297,-1492.25,0.00034246,3]
[310319905,1704471198309,-1310.28,0.00034246,3]
[310319906,1704471198319,-1033.01,0.00034246,3]
[310319907,1704471198328,-432.0083213,0.00034246,3]
[310319908,1704471198339,-8762.76,0.00034246,3]
[310319909,1704471198348,-1037.25,0.00034246,3]
[310319910,1704471198358,-1254.6,0.00034246,3]
[310319911,1704471198367,-206.46,0.00034246,3]
[310319912,1704471198377,-1235.07,0.00034246,3]
[310319913,1704471198386,-257.91830398,0.00034246,3]
[310319914,1704471198395,-1231.65,0.00034246,3]
[310319915,1704471198405,-721.62,0.00034246,3]
[310319916,1704471198414,-2988.81,0.00034246,3]
[310319917,1704471198424,-1078.8,0.00034246,3]
[310319918,1704471198434,-500.0,0.00034246,3]
[310319919,1704471198443,-8593.4,0.00034246,3]
[310319920,1704471198453,-1175.89,0.00034246,3]
[310319921,1704471198462,-858.78,0.00034246,3]
[310319922,1704471198472,-256.52,0.00034246,3]
[310319923,1704471198482,-344.91830953,0.00034246,3]
[310319924,1704471198492,-508.85,0.00034246,3]
[310319925,1704471198501,-775.55,0.00034246,3]
[310319926,1704471198511,-13181.47,0.00034246,3]
[310319927,1704471198519,-2255.28,0.00034246,3]
[310319928,1704471198528,-1023.39,0.00034246,3]
[310319929,1704471198538,-500.0,0.00034246,3]
[310319930,1704471198547,-1387.79,0.00034246,3]
[310319931,1704471198556,-507.25,0.00034246,3]
[310319932,1704471198566,-615.53,0.00034246,3]
[310319933,1704471198575,-500.0,0.00034246,3]
[310319934,1704471198584,-2939.6,0.00034246,3]
[310319935,1704471198594,-500.0,0.00034246,3]
[310319936,1704471198604,-500.0,0.00034246,3]
[310319937,1704471198614,-534.68,0.00034246,3]
[310319938,1704471198623,-871.56,0.00034246,3]
[310319939,1704471198633,-735.74,0.00034246,3]
[310319940,1704471198643,-1299.1,0.00034246,3]
[310319941,1704471198653,-1104.41,0.00034246,3]
[310319942,1704471198662,-1102.46,0.00034246,3]
[310319943,1704471198671,-875.24,0.00034246,3]
[310319944,1704471198680,-2232.74,0.00034246,3]
[310319945,1704471198689,-500.0,0.00034246,3]
[310319946,1704471198699,-924.65,0.00034246,3]
[310319947,1704471198709,-263.05612215,0.00034246,3]
[310319948,1704471198718,-815.75,0.00034246,3]
[310319949,1704471198728,-155.0,0.00034247,2]
[310319950,1704471198737,-150.0,0.000343,23]
[310319951,1704471198747,-680.3,0.000345,2]
[310319952,1704471198757,-157.17,0.000345,2]
[310319953,1704471198766,-157.17,0.000345,2]
[310319954,1704471198775,-157.17,0.000345,2]
[310319955,1704471198785,-157.17,0.000345,2]
[310319956,1704471198794,-157.17,0.000345,2]
[310319957,1704471198803,-157.17,0.000345,2]
[310319958,1704471198812,-500.0,0.00034515,2]
[310319959,1704471198822,-452.15865246,0.0003452,3]
[310319960,1704471198831,-785.36,0.0003452,3]
[310319961,1704471198840,-500.0,0.0003452,3]
[310319962,1704471198850,-1435.45,0.0003452,3]
[310319963,1704471198859,-500.0,0.0003452,3]
[310319964,1704471198868,-764.34,0.0003452,3]
[310319965,1704471198877,-500.0,0.0003452,3]
[310319966,1704471198889,-749.93,0.0003452,3]
[310319967,1704471198898,-512.27,0.0003452,3]
[310319968,1704471198908,-500.0,0.0003452,3]
[310319969,1704471198917,-790.83,0.0003452,3]
[310319970,1704471198926,-500.0,0.0003452,3]
[310319971,1704471198936,-654.72,0.0003452,3]
[310319972,1704471199052,-529.81,0.0003452,3]
[310319973,1704471199062,-553.69,0.0003452,3]
[310319974,1704471199071,-453.07377211,0.0003452,3]
[310319975,1704471199083,-349.70053385,0.0003452,3]
[310319976,1704471199092,-500.0,0.0003452,3]
[310319977,1704471199102,-990.19,0.0003452,3]
[310319978,1704471199112,-355.8448236,0.0003452,3]
[310319979,1704471199121,-500.0,0.0003452,3]
[310319980,1704471199131,-500.0,0.0003452,3]
[310319981,1704471199141,-849.23,0.0003452,3]
[310319982,1704471199151,-482.18529197,0.0003452,3]
[310319983,1704471199160,-500.0,0.0003452,3]
[310319984,1704471199170,-500.0,0.0003452,3]
[310319985,1704471199181,-581.39,0.0003452,3]
[310319986,1704471199191,-500.0,0.0003452,3]
[310319987,1704471199201,-500.0,0.0003452,3]
[310319988,1704471199211,-500.0,0.0003452,3]
[310319989,1704471199220,-500.0,0.0003452,3]
[310319990,1704471199230,-760.0,0.0003452,3]
[310319991,1704471199239,-500.0,0.0003452,2]
[310319992,1704471199249,-671.05,0.0003452,3]
[310319993,1704471199257,-508.03,0.0003452,3]
[310319994,1704471199266,-500.0,0.0003452,3]
[310319995,1704471199275,-500.0,0.0003452,3]
[310319996,1704471199285,-500.0,0.0003452,3]
[310319997,1704471199294,-500.0,0.0003452,3]
[310319998,1704471199303,-500.0,0.0003452,3]
[310319999,1704471199314,-538.55,0.0003452,3]
[310320000,1704471199324,-979.16,0.0003452,3]
[310320001,1704471199333,-1145.26,0.0003452,3]
[310320002,1704471199343,-500.0,0.0003452,3]
[310320003,1704471199351,-702.19,0.0003452,3]
[310320004,1704471199360,-518.33,0.0003452,3]
[310320005,1704471199369,-500.0,0.0003452,3]
[310320006,1704471199378,-500.0,0.0003452,3]
[310320007,1704471199388,-500.0,0.0003452,3]
[310320008,1704471199398,-501.69,0.0003452,3]
[310320009,1704471199407,-500.0,0.0003452,3]
[310320010,1704471199417,-621.07,0.0003452,3]
[310320011,1704471199427,-500.0,0.0003452,3]
[310320012,1704471199436,-500.0,0.0003452,3]
[310320013,1704471199445,-1784.64,0.0003452,3]
[310320014,1704471199455,-500.0,0.0003452,3]
[310320015,1704471199464,-500.0,0.0003452,3]
[310320016,1704471199474,-1054.73,0.0003452,3]
[310320017,1704471199482,-710.67,0.0003452,3]
[310320018,1704471199491,-503.40735463,0.0003452,3]
[310320019,1704471199500,-1300.33,0.0003452,3]
[310320020,1704471199510,-576.89,0.0003452,3]
[310320021,1704471199519,-500.0,0.0003452,3]
[310320022,1704471199529,-280.23917221,0.0003452,3]
[310320023,1704471199538,-1069.2,0.0003452,3]
[310320024,1704471199548,-500.0,0.0003452,3]
[310320025,1704471199557,-500.0,0.0003452,3]
[310320026,1704471199566,-625.92,0.0003452,3]
[310320027,1704471199578,-587.12,0.0003452,3]
[310320028,1704471199587,-704.44,0.0003452,3]
[310320029,1704471199596,-500.0,0.0003452,3]
[310320030,1704471199606,-942.24,0.0003452,3]
[310320031,1704471199616,-500.0,0.0003452,3]
[310320032,1704471199625,-500.0,0.0003452,3]
[310320033,1704471199635,-1261.61,0.0003452,3]
[310320034,1704471199646,-1117.05,0.0003452,3]
[310320035,1704471199655,-500.0,0.0003452,3]
[310320036,1704471199665,-565.76,0.0003452,3]
[310320037,1704471199675,-925.99,0.0003452,3]
[310320038,1704471199685,-292.30060498,0.0003452,3]
[310320039,1704471199694,-500.0,0.0003452,3]
[310320040,1704471199703,-688.58,0.0003452,3]
[310320041,1704471199713,-500.0,0.0003452,3]
[310320042,1704471199722,-858.46,0.0003452,3]
[310320043,1704471199731,-500.0,0.0003452,3]
[310320044,1704471199740,-500.0,0.0003452,3]
[310320045,1704471199749,-500.0,0.0003452,3]
[310320046,1704471199759,-500.0,0.0003452,3]
[310320047,1704471199768,-1444.56,0.0003452,3]
[310320048,1704471199778,-563.9,0.0003452,3]
[310320049,1704471199787,-257.90766891,0.0003452,3]
[310320050,1704471199796,-709.45,0.0003452,3]
[310320051,1704471199805,-218.97065278,0.0003452,3]
[310320052,1704471199814,-384.36618084,0.0003452,3]
[310320053,1704471199824,-520.35,0.0003452,3]
[310320054,1704471199835,-855.3,0.0003452,3]
[310320055,1704471199846,-500.0,0.0003452,3]
[310320056,1704471199855,-1959.68,0.0003452,3]
[310320057,1704471199865,-500.0,0.0003452,3]
[310320058,1704471199875,-610.92,0.0003452,3]
[310320059,1704471199884,-617.83,0.0003452,3]
[310320060,1704471199894,-1510.28,0.0003452,3]
[310320061,1704471199902,-540.96,0.0003452,3]
[310320062,1704471199911,-618.06,0.0003452,3]
[310320063,1704471199922,-456.960719,0.0003452,3]
[310320064,1704471199931,-1094.64,0.0003452,3]
[310320065,1704471199943,-656.56,0.0003452,3]
[310320066,1704471199955,-500.0,0.0003452,3]
[310320067,1704471199966,-1053.74,0.0003452,3]
[310320068,1704471199975,-1104.35,0.0003452,3]
[310320069,1704471199985,-606.82728488,0.0003452,3]
[310320070,1704471199996,-506.93,0.0003452,3]
[310320071,1704471200006,-994.79,0.0003452,3]
[310320072,1704471200017,-500.0,0.0003452,3]
[310320073,1704471200027,-976.12,0.0003452,3]
[310320074,1704471200037,-514.26,0.0003452,3]
[310320075,1704471200047,-572.06,0.0003452,3]
[310320076,1704471200057,-737.83,0.0003452,3]
[310320077,1704471200067,-1754.66,0.0003452,3]
[310320078,1704471200079,-647.46,0.0003452,3]
[310320079,1704471200090,-597.1358663,0.0003452,3]
[310320080,1704471200100,-614.06,0.0003452,3]
[310320081,1704471200110,-762.69,0.0003452,3]
[310320082,1704471200120,-672.73,0.0003452,3]
[310320083,1704471200130,-500.0,0.0003452,3]
[310320084,1704471200140,-553.22,0.0003452,3]
[310320085,1704471200150,-500.0,0.0003452,3]
[310320086,1704471200160,-1134.29,0.0003452,3]
[310320087,1704471200170,-539.04,0.0003452,3]
[310320088,1704471200180,-1649.86,0.0003452,3]
[310320089,1704471200190,-835.39,0.0003452,3]
[310320090,1704471200200,-1069.61,0.0003452,3]
[310320091,1704471200210,-536.06,0.0003452,3]
[310320092,1704471200220,-628.4,0.0003452,3]
[310320093,1704471200229,-555.52,0.0003452,3]
[310320094,1704471200239,-500.0,0.0003452,3]
[310320095,1704471200250,-1117.69,0.0003452,3]
[310320096,1704471200260,-1238.6,0.0003452,3]
[310320097,1704471200269,-1268.87,0.0003452,3]
[310320098,1704471200280,-500.0,0.0003452,3]
[310320099,1704471200290,-500.0,0.0003452,3]
[310320100,1704471200300,-500.0,0.0003452,3]
[310320101,1704471200310,-778.95,0.0003452,3]
[310320102,1704471200319,-500.0,0.0003452,3]
[310320103,1704471200330,-500.0,0.0003452,3]
[310320104,1704471200339,-500.16,0.0003452,3]
[310320105,1704471200350,-500.0,0.0003452,3]
[310320106,1704471200360,-576.0,0.0003452,3]
[310320107,1704471200371,-1162.79,0.0003452,3]
[310320108,1704471200381,-500.0,0.0003452,3]
[310320109,1704471200391,-634.42052094,0.0003452,3]
[310320110,1704471200402,-511.432753,0.0003452,3]
[310320111,1704471200412,-774.96,0.0003452,3]
[310320112,1704471200422,-822.37,0.0003452,3]
[310320113,1704471200432,-1372.88,0.0003452,3]
[310320114,1704471200441,-541.67,0.0003452,3]
[310320115,1704471200451,-753.94,0.0003452,3]
[310320116,1704471200461,-653.2,0.0003452,3]
[310320117,1704471200472,-515.93,0.0003452,3]
[310320118,1704471200483,-500.0,0.0003452,3]
[310320119,1704471200493,-1253.1,0.0003452,3]
[310320120,1704471200504,-500.0,0.0003452,3]
[310320121,1704471200513,-1238.19,0.0003452,3]
[310320122,1704471200524,-772.08,0.0003452,3]
[310320123,1704471200534,-500.0,0.0003452,3]
[310320124,1704471200544,-727.02,0.0003452,3]